bitfinex-derivatives/quotes_BTCF0:USTF0_20250509
["timestamp","ask_amount","ask_price","bid_price","bid_amount"]
[1746808275893,0.0648001,102930.0,102920.0,2.86471677]
[1746808276387,0.0648001,102930.0,102920.0,1.36467677]
[1746808276795,0.0648001,102930.0,102920.0,2.86467677]
[1746808277092,0.0648001,102930.0,102920.0,2.70467677]
[1746808278395,0.0648001,102930.0,102920.0,2.71950731]
[1746808278593,0.2591166,102930.0,102920.0,2.2075893]
[1746808278794,0.78836407,102930.0,102920.0,0.004]
[1746808278988,1.13552407,102930.0,102920.0,0.004]
[1746808279188,1.29552407,102930.0,102920.0,0.004]
[1746808279591,1.04552407,102930.0,102920.0,0.1983354]
[1746808279993,1.04852407,102930.0,102920.0,0.1963354]
[1746808280805,0.1943354,102920.0,102910.0,0.488622]
[1746808280994,0.6504354,102920.0,102910.0,0.488622]
[1746808281292,0.8104354,102920.0,102910.0,0.488622]
[1746808281498,0.6161,102920.0,102910.0,0.488622]
[1746808281702,0.8104354,102920.0,102910.0,0.488622]
[1746808281891,0.8124354,102920.0,102910.0,0.488622]
[1746808282091,0.6181,102920.0,102910.0,0.488622]
[1746808282701,0.8124354,102920.0,102910.0,0.391446]
[1746808282999,0.98088287,102920.0,102910.0,0.3428742]
[1746808283299,0.98188287,102920.0,102910.0,0.3428742]
[1746808284095,0.93330087,102920.0,102890.0,0.69172499]
[1746808284296,0.72362057,102900.0,102890.0,0.15949297]
[1746808284497,0.5551731,102900.0,102890.0,0.15949297]
[1746808284801,0.81492057,102900.0,102890.0,0.14460105]
[1746808284992,0.6464731,102900.0,102890.0,0.14460105]
[1746808285189,0.6121,102900.0,102880.0,0.0816005]
[1746808285395,0.83353897,102890.0,102880.0,0.1944109]
[1746808285593,0.88213947,102890.0,102880.0,0.1944109]
[1746808285896,0.4221,102890.0,102880.0,0.1944109]
[1746808286093,0.4221,102890.0,102880.0,0.36285837]
[1746808286298,0.5821,102890.0,102880.0,0.39535837]
[1746808287102,0.5821,102890.0,102880.0,0.2269109]
[1746808288005,0.5821,102890.0,102880.0,0.2309109]
[1746808288306,0.5821,102890.0,102880.0,0.2349109]
[1746808288605,0.5821,102890.0,102880.0,0.2650109]
[1746808289298,0.47072788,102890.0,102880.0,0.2650109]
[1746808289503,0.66511988,102890.0,102880.0,0.2024109]
[1746808290106,0.63072788,102890.0,102880.0,0.2024109]
[1746808290306,0.63072788,102890.0,102880.0,0.2327109]
[1746808290502,0.82511988,102890.0,102880.0,0.2327109]
[1746808290899,0.82511988,102890.0,102880.0,0.2024109]
[1746808291602,0.63072788,102890.0,102880.0,0.2024109]
[1746808291903,0.82511988,102890.0,102880.0,0.2327109]
[1746808293606,0.82511988,102890.0,102880.0,0.2024109]
[1746808295405,0.63072788,102890.0,102880.0,0.2328109]
[1746808295608,0.82511988,102890.0,102880.0,0.2656109]
[1746808296004,0.63072788,102890.0,102880.0,0.2656109]
[1746808296203,0.47072788,102890.0,102880.0,0.43405837]
[1746808296394,0.10992788,102890.0,102880.0,0.46605837]
[1746808296595,0.10992788,102890.0,102880.0,0.2976109]
[1746808296804,0.47072788,102890.0,102880.0,0.2976109]
[1746808297101,0.47072788,102890.0,102880.0,0.46605837]
[1746808297703,0.47072788,102890.0,102880.0,0.2976109]
[1746808298099,0.07912788,102890.0,102880.0,0.72325426]
[1746808298504,0.04862788,102890.0,102880.0,0.72325426]
[1746808298703,0.4549,102900.0,102890.0,0.194392]
[1746808298901,0.4549,102900.0,102890.0,0.42593947]
[1746808299102,0.50264771,102900.0,102890.0,0.257492]
[1746808299811,0.43954771,102900.0,102890.0,0.52312592]
[1746808300112,0.40854771,102900.0,102890.0,0.68312592]
[1746808300902,0.04774771,102900.0,102890.0,1.04852592]
[1746808301107,0.457,102910.0,102900.0,0.1943731]
[1746808301308,0.6513542,102910.0,102900.0,0.45792057]
[1746808301611,0.70109989,102910.0,102900.0,0.2894731]
[1746808301915,0.50674569,102910.0,102900.0,0.2894731]
[1746808302416,0.70109989,102910.0,102900.0,0.2894731]
[1746808303020,0.70209989,102910.0,102900.0,0.2894731]
[1746808303210,0.50974569,102910.0,102900.0,0.2894731]
[1746808303518,0.70409989,102910.0,102900.0,0.2575731]
[1746808304112,0.86409989,102910.0,102900.0,0.2575731]
[1746808304715,0.86409989,102910.0,102900.0,0.2262731]
[1746808305116,0.86409989,102910.0,102900.0,0.2567731]
[1746808305318,0.66974569,102910.0,102900.0,0.2567731]
[1746808305915,1.01974569,102910.0,102900.0,0.2567731]
[1746808306118,0.66974569,102910.0,102900.0,0.2567731]
[1746808306417,0.50974569,102910.0,102900.0,0.2567731]
[1746808306810,0.1943731,102900.0,102890.0,0.4193552]
[1746808307111,0.4235,102900.0,102890.0,0.4511552]
[1746808307319,0.4235,102900.0,102890.0,0.65120267]
[1746808307719,0.4235,102900.0,102890.0,0.4827552]
[1746808307908,0.194392,102890.0,102880.0,0.2430057]
[1746808308110,0.97893947,102890.0,102880.0,0.3064057]
[1746808308309,0.97893947,102890.0,102880.0,0.0634]
[1746808308523,0.1944109,102880.0,102870.0,0.3232267]
[1746808308710,0.4243,102880.0,102870.0,0.3879267]
[1746808308907,0.031,102880.0,102870.0,0.55637417]
[1746808309109,0.4259,102890.0,102880.0,0.1944109]
[1746808309311,0.4569,102890.0,102880.0,0.2591109]
[1746808309914,0.4569,102890.0,102880.0,0.2611109]
[1746808310113,0.6169,102890.0,102880.0,0.2611109]
[1746808310723,0.6169,102890.0,102880.0,0.2591109]
[1746808311224,0.4569,102890.0,102880.0,0.2591109]
[1746808311924,0.651292,102890.0,102880.0,0.2591109]
[1746808312420,0.3918,102890.0,102880.0,0.52475426]
[1746808313326,0.3918,102890.0,102880.0,0.53980711]
[1746808313514,0.3918,102890.0,102880.0,0.37135964]
[1746808314323,0.3909,102900.0,102890.0,0.194392]
[1746808314522,0.4214,102900.0,102890.0,0.30375004]
[1746808315225,0.4214,102900.0,102890.0,0.30374971]
[1746808316127,0.3608,102900.0,102890.0,0.56938363]
[1746808316422,0.3608,102900.0,102890.0,0.93478273]
[1746808316622,0.14414569,102910.0,102900.0,0.1943731]
[1746808316825,0.14414569,102910.0,102900.0,0.43927738]
[1746808317023,0.50494569,102910.0,102900.0,0.43927738]
[1746808317221,0.11154569,102910.0,102900.0,0.53646383]
[1746808317421,0.08024569,102910.0,102900.0,0.68434383]
[1746808317731,0.26180225,102910.0,102900.0,0.68434383]
[1746808318023,0.29220225,102910.0,102900.0,0.68434383]
[1746808318228,0.29220225,102910.0,102900.0,0.84433905]
[1746808319029,0.29320225,102910.0,102900.0,0.84433905]
[1746808319233,0.30048225,102910.0,102900.0,0.68433905]
[1746808319431,0.67248225,102910.0,102900.0,1.03433905]
[1746808319625,0.67148225,102910.0,102900.0,1.18169905]
[1746808320232,0.66948225,102910.0,102900.0,1.34169905]
[1746808320623,0.89473645,102910.0,102900.0,1.17325158]
[1746808320824,1.25553645,102910.0,102900.0,0.50942513]
[1746808321029,1.31074968,102910.0,102900.0,0.16]
[1746808321229,0.1943731,102900.0,102890.0,0.6416761]
[1746808321433,1.13812057,102900.0,102890.0,0.66672164]
[1746808321632,0.7753,102900.0,102890.0,0.66672164]
[1746808322736,0.7753,102900.0,102890.0,0.66872164]
[1746808323037,0.7753,102900.0,102890.0,0.67072164]
[1746808323230,0.9353,102900.0,102890.0,0.2902761]
[1746808324235,0.7753,102900.0,102890.0,0.2902761]
[1746808324533,0.8988279,102900.0,102890.0,0.2902761]
[1746808325034,1.093201,102900.0,102890.0,0.2569761]
[1746808325234,1.253201,102900.0,102890.0,0.2569761]
[1746808325627,1.253201,102900.0,102890.0,0.2469761]
[1746808325628,1.42164847,102900.0,102890.0,0.2469761]
[1746808325827,1.42164847,102900.0,102890.0,0.198392]
[1746808326229,1.26164847,102900.0,102890.0,0.198392]
[1746808326430,1.35883647,102900.0,102890.0,0.198392]
[1746808327031,1.5081628,102900.0,102890.0,0.196392]
[1746808327226,1.49971533,102900.0,102890.0,0.194392]
[1746808327429,1.50071533,102900.0,102890.0,0.194392]
[1746808328138,1.34071533,102900.0,102890.0,0.194392]
[1746808328438,1.52379258,102900.0,102890.0,0.194392]
[1746808328626,1.16097201,102900.0,102890.0,0.194392]
[1746808328826,1.04915423,102900.0,102890.0,0.36283947]
[1746808329036,1.04915423,102900.0,102890.0,0.42343947]
[1746808329337,1.04915423,102900.0,102890.0,0.424992]
[1746808329730,0.98535423,102900.0,102890.0,0.59343947]
[1746808329934,0.27385423,102900.0,102890.0,1.60361551]
[1746808330130,0.15032633,102900.0,102890.0,1.96901551]
[1746808330738,0.15032633,102900.0,102890.0,3.46901551]
[1746808331840,0.14932633,102900.0,102890.0,3.46901551]
[1746808332440,0.14732633,102900.0,102890.0,3.47101551]
[1746808333333,0.14732633,102900.0,102890.0,3.47301551]
[1746808333528,0.14732633,102900.0,102890.0,3.10761551]
[1746808333733,0.1882679,102910.0,102900.0,0.1943731]
[1746808333930,0.4482679,102910.0,102900.0,0.82297016]
[1746808334135,0.4482679,102910.0,102900.0,0.98297016]
[1746808334339,0.4482679,102910.0,102900.0,1.08015144]
[1746808334833,0.6426221,102910.0,102900.0,1.08015144]
[1746808335342,0.4795679,102910.0,102900.0,1.22735144]
[1746808336135,0.8403679,102910.0,102900.0,1.06735144]
[1746808337444,0.71022569,102910.0,102900.0,1.06735144]
[1746808337843,0.31702569,102910.0,102900.0,1.06735144]
[1746808338142,0.67782569,102910.0,102900.0,1.39579891]
[1746808338543,0.67782569,102910.0,102900.0,1.22735144]
[1746808340042,0.42782569,102910.0,102900.0,1.22735144]
[1746808340246,0.45872569,102910.0,102900.0,1.22735144]
[1746808340636,0.49122569,102910.0,102900.0,1.22735144]
[1746808341145,0.49122569,102910.0,102900.0,1.06735144]
[1746808341645,0.49122569,102910.0,102900.0,1.06735366]
[1746808341837,0.49122569,102910.0,102900.0,0.89890619]
[1746808342038,0.84122569,102910.0,102900.0,1.06735366]
[1746808342238,0.87212569,102910.0,102900.0,1.06735366]
[1746808342948,0.87212569,102910.0,102900.0,0.89890619]
[1746808343343,0.87212569,102910.0,102900.0,1.05230702]
[1746808343643,1.1653221,102910.0,102900.0,0.3739731]
[1746808344239,1.3253221,102910.0,102900.0,0.3739731]
[1746808345242,1.1653221,102910.0,102900.0,0.3739731]
[1746808345443,0.9709679,102910.0,102900.0,0.54242057]
[1746808345845,0.9709679,102910.0,102900.0,0.57532057]
[1746808346448,0.6101679,102910.0,102900.0,0.57532057]
[1746808346748,0.5467679,102910.0,102900.0,1.05249757]
[1746808347250,0.5467679,102910.0,102900.0,1.21249757]
[1746808347547,0.9075679,102910.0,102900.0,1.21249757]
[1746808347752,0.5475679,102910.0,102900.0,1.21249757]
[1746808348052,0.64022067,102910.0,102900.0,1.38094504]
[1746808348744,0.64022067,102910.0,102900.0,1.3960016]
[1746808349253,0.64022067,102910.0,102900.0,1.22755413]
[1746808349550,0.67112067,102910.0,102900.0,1.22755413]
[1746808350452,0.67112067,102910.0,102900.0,1.21249757]
[1746808350951,0.70112067,102910.0,102900.0,1.21249757]
[1746808352152,0.70112067,102910.0,102900.0,1.05249757]
[1746808352455,0.5775679,102910.0,102900.0,1.05249757]
[1746808354543,0.7719221,102910.0,102900.0,1.05249757]
[1746808354744,0.8875679,102910.0,102900.0,1.05249757]
[1746808356654,0.5267679,102910.0,102900.0,1.05249757]
[1746808356860,0.3167679,102910.0,102900.0,1.06754173]
[1746808357059,0.3167679,102910.0,102900.0,0.90529757]
[1746808357361,0.6775679,102910.0,102900.0,1.22694174]
[1746808361660,0.6775679,102910.0,102900.0,1.05849427]
[1746808361861,0.6775679,102910.0,102900.0,1.22694174]
[1746808362163,0.6775679,102910.0,102900.0,1.06694174]
[1746808362861,1.1119221,102910.0,102900.0,0.62181727]
[1746808363061,0.1943731,102900.0,102890.0,0.13981864]
[1746808363260,1.17201052,102900.0,102890.0,0.20945961]
[1746808363460,1.00356305,102900.0,102890.0,0.20930041]
[1746808364266,1.16356305,102900.0,102890.0,0.20930041]
[1746808364868,1.16356305,102900.0,102890.0,0.21130041]
[1746808365059,1.16356305,102900.0,102890.0,0.21330041]
[1746808365261,1.00356305,102900.0,102890.0,0.21330041]
[1746808365569,1.00356305,102900.0,102890.0,0.20930041]
[1746808365867,1.00956305,102900.0,102890.0,0.20930041]
[1746808366663,0.9952872,102900.0,102890.0,0.41094788]
[1746808367369,0.8009,102900.0,102890.0,0.41094788]
[1746808367568,0.8009,102900.0,102890.0,0.44284788]
[1746808368867,0.8009,102900.0,102890.0,0.27440041]
[1746808369074,0.8009,102900.0,102890.0,0.24250041]
[1746808369277,0.9952731,102900.0,102890.0,0.20930041]
[1746808369773,0.8009,102900.0,102890.0,0.20930041]
[1746808370272,0.9609,102900.0,102890.0,0.23980041]
[1746808370573,0.9609,102900.0,102890.0,0.40824788]
[1746808371169,0.8009,102900.0,102890.0,0.23980041]
[1746808371367,0.80818,102900.0,102890.0,0.40824788]
[1746808371568,0.80818,102900.0,102890.0,0.43834788]
[1746808371859,0.74718,102900.0,102890.0,0.78834681]
[1746808372066,0.01328,102900.0,102890.0,1.74759428]
[1746808372266,1e-07,102900.0,102890.0,1.74759428]
[1746808372667,0.0020001,102900.0,102890.0,1.73268587]
[1746808372872,0.0030001,102900.0,102890.0,3.23268587]
[1746808373266,0.0020001,102900.0,102890.0,3.23268587]
[1746808373468,0.0020001,102900.0,102890.0,3.23267627]
[1746808373774,0.0020001,102900.0,102890.0,3.0642288]
[1746808374073,0.0988989,102900.0,102890.0,3.0672288]
[1746808374574,0.0988989,102900.0,102890.0,3.23567627]
[1746808374872,0.0988989,102900.0,102890.0,3.23867627]
[1746808375371,0.0988989,102900.0,102890.0,3.23867613]
[1746808375572,0.0988989,102900.0,102890.0,3.07022866]
[1746808376270,0.046725,102900.0,102890.0,3.23867613]
[1746808376472,1e-07,102900.0,102890.0,3.23867613]
[1746808376778,0.0005,102920.0,102910.0,0.1943542]
[1746808376973,0.68826498,102930.0,102920.0,0.1943354]
[1746808377273,1.03826498,102930.0,102920.0,0.91024561]
[1746808377465,1.07136498,102930.0,102920.0,1.00743206]
[1746808377669,0.7582146,102930.0,102920.0,1.00743206]
[1746808378266,0.7582146,102930.0,102920.0,0.84743206]
[1746808378676,0.7592146,102930.0,102920.0,0.84743206]
[1746808378874,0.4992146,102930.0,102920.0,0.84843206]
[1746808379077,0.4982146,102930.0,102920.0,0.86324454]
[1746808379377,0.4982146,102930.0,102920.0,0.86424454]
[1746808379564,0.4982146,102930.0,102920.0,0.84943206]
[1746808379768,0.8590146,102930.0,102920.0,0.84943206]
[1746808379970,0.8590146,102930.0,102920.0,0.68098459]
[1746808380178,0.8590146,102930.0,102920.0,0.84943206]
[1746808380687,1.2333311,102930.0,102920.0,0.39039814]
[1746808381066,1.0390146,102930.0,102920.0,0.39039814]
[1746808381266,1.1990146,102930.0,102920.0,0.39039814]
[1746808383384,1.1990146,102930.0,102920.0,0.24379814]
[1746808383586,1.1990146,102930.0,102920.0,0.2289354]
[1746808384280,1.0390146,102930.0,102920.0,0.2289354]
[1746808386282,0.74424972,102930.0,102920.0,0.2289354]
[1746808388485,0.74424972,102930.0,102920.0,0.2605354]
[1746808391777,0.74624972,102930.0,102920.0,0.2585354]
[1746808392184,0.90624972,102930.0,102920.0,0.2585354]
[1746808392682,1.26901369,102930.0,102920.0,0.1943354]
[1746808392989,1.36619439,102930.0,102920.0,0.1943354]
[1746808393288,1.24648622,102930.0,102920.0,0.20898461]
[1746808393588,1.24648622,102930.0,102920.0,0.24188461]
[1746808393783,0.90624972,102930.0,102920.0,0.24188461]
[1746808394081,0.90624972,102930.0,102920.0,0.57033208]
[1746808394287,0.74624972,102930.0,102920.0,0.62058287]
[1746808394788,0.74624972,102930.0,102920.0,0.4521354]
[1746808395192,0.74624972,102930.0,102920.0,0.2921354]
[1746808397090,0.90624972,102930.0,102920.0,0.2921354]
[1746808398292,0.74624972,102930.0,102920.0,0.2921354]
[1746808398785,0.74624972,102930.0,102920.0,0.2594354]
[1746808398985,0.50624972,102930.0,102920.0,0.2594354]
[1746808401484,0.50624972,102930.0,102920.0,0.2743123]
[1746808402586,0.70056622,102930.0,102920.0,0.2092123]
[1746808402787,1.15901369,102930.0,102920.0,0.1943354]
[1746808403289,1.12469719,102930.0,102920.0,0.1943354]
[1746808403486,0.95624972,102930.0,102920.0,0.2257354]
[1746808403687,1.15056622,102930.0,102920.0,0.2257354]
[1746808404996,0.95624972,102930.0,102920.0,0.2257354]
[1746808405188,0.79624972,102930.0,102920.0,0.24062194]
[1746808405386,0.99056622,102930.0,102920.0,0.24062194]
[1746808405786,0.99056622,102930.0,102920.0,0.25554329]
[1746808406292,1.51136622,102930.0,102920.0,0.25554329]
[1746808407895,1.51136622,102930.0,102920.0,0.28674329]
[1746808408595,1.31704972,102930.0,102920.0,0.28674329]
[1746808408895,1.51136622,102930.0,102920.0,0.28674329]
[1746808409288,1.57123276,102930.0,102920.0,0.27185421]
[1746808409596,1.57123276,102930.0,102920.0,0.28674313]
[1746808410400,1.73968023,102930.0,102920.0,0.22414313]
[1746808410697,1.73968023,102930.0,102920.0,0.01491881]
[1746808410892,1.73968023,102930.0,102920.0,0.20925421]
[1746808412993,1.8109712,102930.0,102900.0,0.33818678]
[1746808413294,1.08440167,102910.0,102900.0,0.31966377]
[1746808413490,1.46440167,102910.0,102900.0,0.30476678]
[1746808413695,1.52550167,102910.0,102900.0,0.30476678]
[1746808413894,1.52550167,102910.0,102900.0,0.33476678]
[1746808414098,1.68550167,102910.0,102900.0,0.33476678]
[1746808414398,1.68550167,102910.0,102900.0,0.33776678]
[1746808415897,1.68550167,102910.0,102900.0,0.01622638]
[1746808416082,1.68550167,102910.0,102900.0,0.21059948]
[1746808417097,1.68650167,102910.0,102900.0,0.21059948]
[1746808417295,1.68650167,102910.0,102900.0,0.23999948]
[1746808419394,1.49214747,102910.0,102900.0,0.23999948]
[1746808419593,1.68650167,102910.0,102900.0,0.23999948]
[1746808420094,1.52650167,102910.0,102900.0,0.23999948]
[1746808420295,1.52650167,102910.0,102900.0,0.26999948]
[1746808420800,1.33214747,102910.0,102900.0,0.26999948]
[1746808421001,1.1637,102910.0,102900.0,0.26999948]
[1746808421196,0.7534,102910.0,102900.0,0.42999948]
[1746808421698,0.7534,102910.0,102900.0,0.44999948]
[1746808422096,0.7226,102910.0,102900.0,0.45844695]
[1746808422297,0.7226,102910.0,102900.0,0.74048271]
[1746808422689,0.7226,102910.0,102900.0,0.57203524]
[1746808423098,0.7216,102910.0,102900.0,0.71851524]
[1746808423288,0.72888,102910.0,102900.0,0.71851524]
[1746808423691,0.76208,102910.0,102900.0,0.71951524]
[1746808425100,0.76208,102910.0,102900.0,0.87951524]
[1746808425702,0.76208,102910.0,102900.0,0.89420958]
[1746808427096,0.76208,102910.0,102900.0,0.73420958]
[1746808427403,0.76208,102910.0,102900.0,0.73422221]
[1746808427607,0.76208,102910.0,102900.0,0.7193602]
[1746808428503,0.76208,102910.0,102900.0,0.73421696]
[1746808429109,0.76208,102910.0,102900.0,0.7193602]
[1746808429400,0.76208,102910.0,102900.0,0.5738802]
[1746808429604,1.15588167,102910.0,102900.0,0.6370392]
[1746808429798,1.23152747,102910.0,102900.0,0.4470392]
[1746808430304,1.06308,102910.0,102900.0,0.4470392]
[1746808431110,1.06308,102910.0,102900.0,0.44703805]
[1746808432006,1.06308,102910.0,102900.0,0.4321832]
[1746808433606,0.00728,102910.0,102900.0,1.44324493]
[1746808434105,0.00728,102910.0,102900.0,1.23795549]
[1746808434292,0.00728,102910.0,102900.0,2.73795549]
[1746808434607,0.00728,102910.0,102900.0,1.23795549]
[1746808435605,0.00728,102910.0,102900.0,1.23795014]
[1746808437104,0.00728,102910.0,102900.0,0.90950267]
[1746808437305,0.00728,102910.0,102900.0,1.27490267]
[1746808437506,0.00728,102910.0,102900.0,1.42006267]
[1746808438506,0.00728,102910.0,102900.0,1.42007077]
[1746808438908,0.03798,102910.0,102900.0,1.42007077]
[1746808439094,0.00728,102910.0,102900.0,1.42007077]
[1746808439299,0.00728,102910.0,102900.0,1.58851824]
[1746808440397,0.00728,102910.0,102900.0,1.42007077]
[1746808440607,0.04048,102910.0,102900.0,1.11457648]
[1746808440808,0.04048,102910.0,102900.0,1.40513648]
[1746808441104,0.04048,102910.0,102900.0,1.11457648]
[1746808441306,0.04048,102910.0,102900.0,1.57358395]
[1746808441507,0.04048,102910.0,102900.0,1.28302395]
[1746808441806,0.04048,102910.0,102900.0,1.57358395]
[1746808442810,0.04048,102910.0,102900.0,1.58844193]
[1746808444207,0.04048,102910.0,102900.0,1.58836193]
[1746808444393,0.20892747,102910.0,102900.0,1.12943446]
[1746808444601,1.38738167,102910.0,102900.0,0.20959948]
[1746808444897,1.48455767,102910.0,102900.0,0.22441505]
[1746808445100,1.13738167,102910.0,102900.0,0.22441505]
[1746808445301,1.29738167,102910.0,102900.0,0.22441505]
[1746808446309,1.29738167,102910.0,102900.0,0.22341505]
[1746808446506,1.29838167,102910.0,102900.0,0.22341505]
[1746808447106,1.29838167,102910.0,102900.0,0.22241505]
[1746808447503,1.10402747,102910.0,102900.0,0.22241505]
[1746808447704,1.29838167,102910.0,102900.0,0.22241505]
[1746808448013,1.30038167,102910.0,102900.0,0.22241505]
[1746808448204,1.30138167,102910.0,102900.0,0.22241505]
[1746808448709,1.29838167,102910.0,102900.0,0.22241505]
[1746808448914,1.30338167,102910.0,102900.0,0.22241505]
[1746808451708,1.10902747,102910.0,102900.0,0.22241505]
[1746808451909,0.94058,102910.0,102900.0,0.27491505]
[1746808452099,0.26978,102910.0,102900.0,0.63446252]
[1746808452417,0.10978,102910.0,102900.0,0.46601505]
[1746808452602,0.63902747,102910.0,102900.0,0.46601505]
[1746808452910,0.47058,102910.0,102900.0,0.44601505]
[1746808453111,0.47058,102910.0,102900.0,0.28601505]
[1746808453308,0.10878,102910.0,102900.0,0.28601505]
[1746808453905,0.46458,102910.0,102900.0,0.28601505]
[1746808454107,0.46558,102910.0,102900.0,0.28601505]
[1746808454307,0.46558,102910.0,102900.0,0.25491505]
[1746808454708,1.18838167,102910.0,102900.0,0.22241505]
[1746808454910,1.18838167,102910.0,102900.0,0.02804195]
[1746808455210,1.34838167,102910.0,102900.0,0.22241505]
[1746808455415,1.1799342,102910.0,102900.0,0.22241505]
[1746808455917,0.98558,102910.0,102900.0,0.22241505]
[1746808456215,1.0199342,102910.0,102900.0,0.22241505]
[1746808457218,1.18838167,102910.0,102900.0,0.22241505]
[1746808458104,1.34838167,102910.0,102900.0,0.22241505]
[1746808460318,1.34838167,102910.0,102900.0,0.02804195]
[1746808460616,1.34838167,102910.0,102900.0,0.22241505]
[1746808465420,1.49659702,102910.0,102900.0,0.22241505]
[1746808467123,1.33659702,102910.0,102900.0,0.22241505]
[1746808467315,1.33659702,102910.0,102900.0,0.25561505]
[1746808467514,0.94099535,102910.0,102900.0,0.42406252]
[1746808467818,0.91049535,102910.0,102900.0,0.31721505]
[1746808468022,0.94179535,102910.0,102900.0,0.31721505]
[1746808468224,0.94179535,102910.0,102900.0,0.47721505]
[1746808469214,0.94179535,102910.0,102900.0,0.31721505]
[1746808469617,1.30459702,102910.0,102900.0,0.02804195]
[1746808469909,1.30459702,102910.0,102900.0,0.22241505]
[1746808470110,1.46459702,102910.0,102900.0,0.25461505]
[1746808470823,1.29614955,102910.0,102900.0,0.25461505]
[1746808471022,1.46459702,102910.0,102900.0,0.25461505]
[1746808471415,1.31638167,102910.0,102900.0,0.25461505]
[1746808472124,1.15638167,102910.0,102900.0,0.25461505]
[1746808473125,1.31638167,102910.0,102900.0,0.25461505]
[1746808474220,1.46459702,102910.0,102900.0,0.25461505]
[1746808474920,1.46459702,102910.0,102900.0,0.06024195]
[1746808475125,1.46459702,102910.0,102900.0,0.25461505]
[1746808476120,1.46459702,102910.0,102900.0,0.06024195]
[1746808476322,0.194392,102890.0,102880.0,0.0307]
[1746808476528,1.60935947,102890.0,102880.0,0.02311006]
[1746808476825,1.67135947,102890.0,102880.0,0.21752096]
[1746808477228,1.83135947,102890.0,102880.0,0.21752096]
[1746808477524,1.83135947,102890.0,102880.0,0.22252096]
[1746808478327,1.73416347,102890.0,102850.0,0.41547256]
[1746808478527,0.5552487,102860.0,102850.0,0.38982715]
[1746808478831,0.72369617,102860.0,102850.0,0.23514228]
[1746808479128,1.04720907,102860.0,102840.0,0.64053791]
[1746808479328,0.4227,102850.0,102840.0,1.02915931]
[1746808479528,0.4227,102850.0,102840.0,1.05975931]
[1746808479730,0.4227,102850.0,102840.0,1.09095931]
[1746808480130,0.4227,102850.0,102840.0,1.09495931]
[1746808480727,0.4227,102850.0,102840.0,0.78695931]
[1746808481223,0.78561507,102850.0,102840.0,0.68971651]
[1746808481429,0.95114747,102850.0,102840.0,0.65971651]
[1746808481630,0.7827,102850.0,102840.0,0.65971651]
[1746808482130,0.95114747,102850.0,102840.0,0.31487648]
[1746808482431,0.95214747,102850.0,102840.0,0.30887648]
[1746808482631,0.7837,102850.0,102840.0,0.30887648]
[1746808483733,0.7837,102850.0,102840.0,0.31387648]
[1746808484134,0.3618,102850.0,102840.0,0.64232395]
[1746808484431,0.41289655,102850.0,102840.0,0.63732395]
[1746808485232,0.41089655,102850.0,102840.0,0.47732395]
[1746808485533,0.40989655,102850.0,102840.0,0.47732395]
[1746808486137,0.40989655,102850.0,102840.0,0.63732395]
[1746808486438,0.41718655,102850.0,102840.0,0.63732395]
[1746808488037,0.05638655,102850.0,102840.0,0.77732395]
[1746808488331,0.3608,102880.0,102870.0,0.1944298]
[1746808488537,0.7239,102880.0,102870.0,0.37775592]
[1746808488737,0.7239,102880.0,102870.0,0.20930845]
[1746808488928,0.7239,102880.0,102870.0,0.30150845]
[1746808489630,0.7555,102880.0,102870.0,0.30150845]
[1746808489835,0.7565,102880.0,102870.0,0.30150845]
[1746808490139,0.7595,102880.0,102870.0,0.46150845]
[1746808490533,0.80720448,102880.0,102870.0,0.46150845]
[1746808490939,0.44460448,102880.0,102870.0,0.46150845]
[1746808491847,0.47760448,102880.0,102870.0,0.46150845]
[1746808493240,0.44460448,102880.0,102870.0,0.46150845]
[1746808493640,0.47760448,102880.0,102870.0,0.46150845]
[1746808496444,0.44460448,102880.0,102870.0,0.62995592]
[1746808496642,0.44460448,102880.0,102870.0,0.46150845]
[1746808497447,0.41150448,102880.0,102870.0,0.72716126]
[1746808497839,0.41150448,102880.0,102870.0,1.47256126]
[1746808498842,0.41150448,102880.0,102870.0,1.09411379]
[1746808499043,0.41150448,102880.0,102870.0,1.46256126]
[1746808500837,0.44270448,102880.0,102870.0,1.25256126]
[1746808501333,0.05070448,102880.0,102870.0,1.44256126]
[1746808501641,0.05070448,102880.0,102870.0,1.75544873]
[1746808501847,0.05070448,102880.0,102870.0,1.7701004]
[1746808502035,1e-07,102880.0,102870.0,1.8673044]
[1746808502237,1e-07,102880.0,102870.0,1.85242575]
[1746808502440,1e-07,102880.0,102870.0,3.35242575]
[1746808502639,1e-07,102880.0,102870.0,3.08677428]
[1746808502848,1e-07,102880.0,102870.0,3.23085428]
[1746808503544,0.43238,102890.0,102880.0,0.1944109]
[1746808503737,0.43238,102890.0,102880.0,0.9641109]
[1746808503938,0.46288,102890.0,102880.0,0.9641109]
[1746808504137,0.657272,102890.0,102880.0,0.72131624]
[1746808504341,0.657272,102890.0,102880.0,0.6241109]
[1746808505036,0.51059291,102890.0,102880.0,0.63881979]
[1746808505450,0.50331291,102890.0,102880.0,0.64081979]
[1746808505748,0.50331291,102890.0,102880.0,0.80926726]
[1746808506143,0.50331291,102890.0,102880.0,0.96926726]
[1746808506646,0.50331291,102890.0,102880.0,0.80081979]
[1746808507035,0.40851291,102890.0,102880.0,1.06646315]
[1746808507438,0.44101291,102890.0,102880.0,1.05175426]
[1746808508048,0.04771291,102890.0,102880.0,1.41255426]
[1746808508241,0.53985188,102910.0,102900.0,0.1943731]
[1746808508546,0.95495188,102910.0,102900.0,0.1943731]
[1746808508746,1.00271641,102910.0,102900.0,0.2585731]
[1746808509644,1.00571641,102910.0,102900.0,0.2585731]
[1746808510041,1.00571641,102910.0,102900.0,0.88959757]
[1746808510246,1.00871641,102910.0,102900.0,1.06422481]
[1746808510446,1.00871641,102910.0,102900.0,1.07895536]
[1746808510447,0.73871641,102910.0,102900.0,1.07895536]
[1746808511136,0.73871641,102910.0,102900.0,1.06432812]
[1746808511653,0.73871641,102910.0,102900.0,0.89588065]
[1746808511844,0.59086453,102910.0,102900.0,0.89588065]
[1746808512250,0.59086453,102910.0,102900.0,0.73588065]
[1746808512842,0.59086453,102910.0,102900.0,0.6888501]
[1746808513052,0.59086453,102910.0,102900.0,0.5916731]
[1746808514051,1.04521873,102910.0,102900.0,0.5916731]
[1746808514448,1.2136662,102910.0,102900.0,0.5744434]
[1746808514651,1.2136662,102910.0,102900.0,0.3800703]
[1746808514953,1.2136662,102910.0,102900.0,0.5744434]
[1746808515251,1.3736662,102910.0,102900.0,0.2090434]
[1746808516348,1.3736662,102910.0,102900.0,0.0146703]
[1746808517455,1.3736662,102910.0,102900.0,0.2090434]
[1746808517652,1.20521873,102910.0,102900.0,0.2090434]
[1746808519546,1.20521873,102910.0,102900.0,0.2398434]
[1746808520447,1.01086453,102910.0,102900.0,0.2090434]
[1746808520646,1.01086453,102910.0,102900.0,0.2725434]
[1746808521149,0.99871641,102910.0,102900.0,0.2725434]
[1746808522246,0.99871641,102910.0,102900.0,0.44099087]